bitfinex-derivatives/quotes_BNBF0:USTF0_20250211
["timestamp","ask_amount","ask_price","bid_price","bid_amount"]
[1739306654883,0.29160768,630.94,628.83,1.18056401]
[1739306655084,0.29160768,630.93,628.83,1.18056401]
[1739306655286,0.29160768,630.99,628.83,1.18056401]
[1739306655488,0.29160768,630.92,628.83,1.18056401]
[1739306655788,0.29160768,630.91,628.94,1.18056401]
[1739306655983,0.29160768,630.98,628.94,1.18056401]
[1739306656186,0.29160768,630.97,628.94,1.18056401]
[1739306656389,0.29160768,630.98,628.94,1.18056401]
[1739306656583,0.29160768,630.97,628.94,1.18056401]
[1739306656781,0.652,630.96,628.94,1.18056401]
[1739306656980,1.011,629.58,628.94,1.18056401]
[1739306657782,1.011,629.58,628.25,2.40746523]
[1739306657783,1.011,629.58,628.89,1.18056401]
[1739306660785,1.011,629.58,628.75,1.18056401]
[1739306663389,1.011,629.58,628.0,1.18056401]
[1739306664093,1.011,629.58,628.01,1.65952019]
[1739306665984,1.18412896,630.8,628.01,1.65952019]
[1739306666186,0.29179,630.79,628.01,1.65952019]
[1739306667192,1.351,628.71,628.01,1.65952019]
[1739306674195,1.351,628.71,628.01,2.8400842]
[1739306675198,1.246,629.15,628.01,2.8400842]
[1739306676195,1.246,629.15,628.03,0.31845612]
[1739306676396,1.398,628.81,628.03,0.31845612]
[1739306678195,2.66,628.81,628.03,0.31845612]
[1739306678597,2.66,628.81,627.97,1.18056401]
[1739306679202,2.66,628.81,628.09,1.18056401]
[1739306682108,0.655,628.8,628.09,1.18056401]
[1739306682906,0.655,628.8,628.1,0.31842063]
[1739306685514,0.998,628.21,628.1,0.31842063]
[1739306685704,0.998,628.21,627.24,1.18056401]
[1739306685909,0.998,628.21,627.26,0.31884704]
[1739306687109,1.978,628.21,627.26,0.31884704]
[1739306689109,1.978,628.21,627.27,1.66195064]
[1739306689309,1.978,628.21,627.29,0.3188318]
[1739306692518,3.053,628.21,627.29,0.3188318]
[1739306693619,2.055,628.21,627.29,0.3188318]
[1739306695020,1.214,627.96,627.29,0.3188318]
[1739306701930,2.055,628.21,627.29,0.3188318]
[1739306703026,1.339,627.66,627.29,0.3188318]
[1739306709730,0.655,628.0,627.29,0.3188318]
[1739306711839,0.655,628.0,627.29,1.48787334]
[1739306714336,0.655,628.0,627.53,1.16904154]
[1739306714636,0.655,628.0,627.54,0.31870478]
[1739306716839,0.655,628.0,627.74,1.16904154]
[1739306717032,0.655,628.0,627.75,0.31859816]
[1739306717237,1.255,628.01,627.75,0.31859816]
[1739306717835,2.055,628.21,627.75,0.31859816]
[1739306719038,1.422,628.11,627.75,0.31859816]
[1739306719942,1.422,628.11,627.75,1.4876397]
[1739306722033,1.422,628.11,627.75,0.31859816]
[1739306723942,2.403,628.11,627.75,0.31859816]
[1739306724144,2.403,628.11,627.82,1.16904154]
[1739306726243,0.981,628.11,627.82,1.16904154]
[1739306726639,0.981,628.11,628.04,1.16904154]
[1739306727441,0.981,628.11,628.04,0.18304154]
[1739306728941,0.981,628.11,627.76,1.18056401]
[1739306729142,0.981,628.11,627.77,0.31858801]
[1739306744452,2.461,628.11,627.77,0.31858801]
[1739306747460,2.461,628.11,627.98,1.18056401]
[1739306749560,2.461,628.11,627.87,1.18056401]
[1739306752564,2.461,628.11,627.88,0.3185322]
[1739306752961,1.48,628.11,627.88,0.3185322]
[1739306760058,1.48,628.11,628.01,1.18056401]
[1739306762260,1.48,628.11,627.97,1.18056401]
[1739306765264,1.48,628.11,627.94,1.18056401]
[1739306767267,1.48,628.11,627.88,0.3185322]
[1739306768967,2.053,628.21,627.88,0.3185322]
[1739306770069,3.302,628.21,628.05,1.18056401]
[1739306770468,3.302,628.21,628.06,0.31844091]
[1739306772169,2.284,628.21,628.06,0.31844091]
[1739306774766,1.249,628.21,628.06,0.31844091]
[1739306778379,1.249,628.21,628.06,1.49900492]
[1739306781580,1.249,628.21,628.12,1.18056401]
[1739306784180,1.249,628.21,628.18,1.18056401]
[1739306786485,1.249,628.21,628.07,1.41499997]
[1739306789084,1.464,628.16,628.07,1.41499997]
[1739306789285,1.464,628.16,628.14,1.18561744]
[1739306790681,2.646,628.16,628.14,1.18561744]
[1739306792086,2.646,628.16,628.06,0.31844091]
[1739306797482,2.646,628.16,628.1,1.18561744]
[1739306798992,1.182,628.16,628.1,1.18561744]
[1739306800191,1.182,628.16,628.1,0.20461744]
[1739306802193,1.182,628.16,628.06,0.31844091]
[1739306837416,1.05355909,628.06,627.4,1.18561744]
[1739306837720,1.05355909,628.06,627.37,1.18561744]
[1739306838413,0.654,628.19,627.37,1.18561744]
[1739306840020,0.654,628.19,627.39,1.18561744]
[1739306842221,0.654,628.19,627.34,1.18561744]
[1739306842415,0.654,628.19,627.35,0.3188013]
[1739306845022,0.654,628.19,627.41,1.18561744]
[1739306847115,0.654,628.19,627.35,0.3188013]
[1739306859436,1.196,627.95,627.35,0.3188013]
[1739306860834,5.891,627.95,627.35,0.3188013]
[1739306864735,5.891,627.95,627.36,1.66273148]
[1739306868646,4.695,627.95,627.36,1.66273148]
[1739306869542,1.164,627.61,627.36,1.66273148]
[1739306870245,2.438,627.61,627.36,1.66273148]
[1739306870445,2.438,627.61,627.37,0.31879114]
[1739306876847,2.438,627.61,627.38,1.18166709]
[1739306877051,2.438,627.61,627.39,0.31878098]
[1739306878549,1.274,627.61,627.39,0.31878098]
[1739306879655,1.274,627.61,627.53,1.18561744]
[1739306879855,1.274,627.61,627.54,0.31870478]
[1739306882555,1.422,627.72,627.54,0.31870478]
[1739306882751,1.422,627.72,627.54,1.50432222]
[1739306885255,1.422,627.72,627.62,1.18561744]
[1739306885452,1.422,627.72,627.7,1.17872693]
[1739306887961,1.422,627.72,627.67,1.17872693]
[1739306889161,1.422,627.72,627.68,0.31863369]
[1739306891162,1.274,627.91,627.68,0.31863369]
[1739306892358,2.264,627.91,627.68,0.31863369]
[1739306898469,1.299,627.71,627.68,0.31863369]
[1739306899466,1.299,627.71,627.53,1.66177208]
[1739306906169,1.299,627.71,627.58,1.17872693]
[1739306906773,1.299,627.71,627.58,1.4974114]
[1739306907374,1.299,627.71,627.59,0.31867939]
[1739306907567,0.654,627.9,627.59,0.31867939]
[1739306910374,0.654,627.9,627.8,1.18286157]
[1739306910570,2.116,627.9,627.8,1.18286157]
[1739306912377,2.116,627.9,627.81,0.31856771]
[1739306912575,1.462,627.9,627.81,0.31856771]
[1739306915876,1.462,627.9,627.81,1.50142928]
[1739306918778,1.462,627.9,627.81,0.31856771]
[1739306925086,1.462,627.9,627.85,1.18286157]
[1739306925587,1.462,627.9,627.86,0.31854235]
[1739306930292,1.462,627.9,627.88,1.17878059]
[1739306931190,1.462,627.9,627.89,0.31852713]
[1739306935194,1.462,627.9,627.89,1.49730772]
[1739306936093,1.251,628.21,627.89,1.49730772]
[1739306938392,1.251,628.21,627.89,0.31852713]
[1739306940896,1.251,628.21,628.2,1.18201396]
[1739306943801,1.251,628.21,628.13,1.18286157]
[1739306946696,1.251,628.21,628.17,1.18584248]
[1739306949205,1.251,628.21,628.18,1.41499997]
[1739306952400,1.251,628.21,627.52,2.40746523]
[1739306952401,1.251,628.21,627.93,1.18753192]
[1739306954002,2.621,628.21,627.93,1.18753192]
[1739306955205,2.621,628.21,628.11,1.18753192]
[1739306956206,1.37,628.21,628.11,1.18753192]
[1739306957301,1.37,628.21,627.59,2.40746523]
[1739306957302,1.37,628.21,628.13,1.18753192]
[1739306960109,1.37,628.21,628.1,1.18753192]
[1739306960708,1.37,628.21,628.1,1.50595255]
[1739306962107,1.273,628.24,628.1,1.50595255]
[1739306962611,1.273,628.24,628.16,1.18753192]
[1739306965812,1.273,628.24,628.1,0.31842063]
[1739306965813,1.273,628.24,628.21,1.18753192]
[1739306968113,1.273,628.24,628.23,1.18753192]
[1739306970107,1.273,628.24,628.23,1.18167091]
[1739306972011,1.273,628.24,628.1,1.50009154]
[1739306974115,1.273,628.24,628.14,1.18167091]
[1739306975514,1.245,628.26,628.14,1.18167091]
[1739306975917,1.245,628.26,628.11,1.18167091]
[1739306976816,2.518,628.26,628.11,1.18167091]
[1739306977612,2.518,628.26,628.16,1.18167091]
[1739306979722,2.518,628.26,628.17,1.18753192]
[1739306982323,2.518,628.26,628.18,1.18753192]
[1739306982521,1.273,628.26,628.18,1.18753192]
[1739306984625,1.273,628.26,628.15,1.41499997]
[1739306986422,1.273,628.26,628.15,1.73339525]
[1739306987528,1.273,628.26,628.16,1.18278236]
[1739306987925,1.273,628.26,628.17,0.31838515]
[1739306988522,0.00857827,628.26,628.17,0.31838515]
[1739306991622,1.132,628.41,628.17,0.31838515]
[1739306993827,1.132,628.66,628.17,0.31838515]
[1739306995030,1.234,628.56,628.17,0.31838515]
[1739306995228,1.234,628.56,628.28,1.41499997]
[1739306995432,2.525,628.56,628.28,1.41499997]
[1739306995733,2.525,628.56,628.29,0.31832434]
[1739306997336,2.525,628.56,628.37,1.17976423]
[1739306999139,2.525,628.56,628.29,0.31832434]
[1739306999140,2.525,628.56,628.42,1.17976423]
[1739307001935,1.291,628.56,628.42,1.17976423]
[1739307002241,1.291,628.56,628.43,0.31825342]
[1739307005243,1.291,628.56,628.44,1.17976423]
[1739307007440,1.291,628.56,628.43,0.31825342]
[1739307008846,1.291,628.56,628.16,1.17976423]
[1739307009943,1.291,628.56,627.67,1.17976423]
[1739307010146,1.291,628.56,627.69,0.31862862]
[1739307010747,1.291,628.56,627.7,1.66087323]
[1739307010942,1.291,628.56,627.72,0.31861339]
[1739307014348,1.291,628.56,628.04,1.17976423]
[1739307014349,0.983,628.16,628.04,1.17976423]
[1739307017243,0.983,628.16,627.96,1.17976423]
[1739307019652,0.983,628.16,627.72,1.73361336]
[1739307019653,0.983,628.16,627.72,0.31861339]
[1739307021452,0.653,628.55,627.72,0.31861339]
[1739307022551,1.475,627.86,627.72,0.31861339]
[1739307030357,0.653,628.05,627.72,0.31861339]
[1739307031458,1.293,627.96,627.72,0.31861339]
[1739307037860,2.653,627.96,627.72,0.31861339]
[1739307038456,1.36,627.96,627.72,0.31861339]
[1739307039659,1.195,627.91,627.72,0.31861339]
[1739307048668,1.195,627.91,627.74,1.17976423]
[1739307051269,1.195,627.91,627.72,0.31861339]
[1739307052773,1.36,627.96,627.72,0.31861339]
[1739307053965,1.36,627.96,627.71,0.31861847]
[1739307054166,1.36,627.96,627.71,1.4983827]
[1739307056570,1.36,627.96,627.88,1.17976423]
[1739307058474,1.36,627.96,627.91,1.17976423]
[1739307060276,1.36,627.96,627.91,1.18484748]
[1739307060573,1.36,627.96,627.92,0.31851191]
[1739307064077,2.617,628.36,627.92,0.31851191]
[1739307064581,2.617,628.36,627.95,1.41499997]
[1739307064776,2.617,628.36,627.96,0.31849162]
[1739307067687,1.073,628.37,627.96,0.31849162]
[1739307067880,1.073,628.37,628.32,1.1796084]
[1739307068386,1.073,628.37,628.33,0.31830407]
[1739307069885,1.073,628.37,628.33,1.49791247]
[1739307071283,1.073,628.37,628.33,0.31830407]
[1739307082987,1.272,628.71,628.33,0.31830407]
[1739307086393,1.142,628.76,628.33,0.31830407]
[1739307088295,1.445,628.77,628.33,0.31830407]
[1739307097600,1.46,629.01,628.33,0.31830407]
[1739307098199,1.271,629.06,628.33,0.31830407]
[1739307099899,1.271,629.06,628.37,1.1796084]
[1739307100399,1.271,629.06,628.38,0.31827874]
[1739307100598,1.366,629.17,628.38,0.31827874]
[1739307102202,1.088,629.36,628.38,0.31827874]
[1739307102702,1.088,629.36,628.59,1.1796084]
[1739307103004,1.068,629.51,628.59,1.1796084]
[1739307104003,1.068,629.51,628.61,0.31816229]
[1739307106006,1.068,629.51,628.76,1.1796084]
[1739307106204,1.068,629.51,628.77,0.31808133]
[1739307123916,1.068,629.51,628.96,1.1796084]
[1739307125721,0.996,629.38,628.96,1.1796084]
[1739307127219,2.036,629.38,628.83,1.1796084]
[1739307127418,2.036,629.38,628.84,0.31804592]
[1739307128825,3.187,629.38,628.84,0.31804592]
[1739307129721,3.187,629.38,628.94,1.1796084]
[1739307132429,3.187,629.38,628.72,1.1796084]
[1739307134633,2.191,629.38,628.72,1.1796084]
[1739307135234,2.191,629.38,628.47,1.1796084]
[1739307135828,1.11,628.81,628.47,1.1796084]
[1739307136635,1.11,628.81,628.47,1.49784156]
[1739307136934,1.11,628.81,628.48,0.3182281]
[1739307139733,1.11,628.81,628.49,1.65937511]
[1739307140037,1.11,628.81,628.5,0.31821797]
[1739307141231,2.191,629.38,628.5,0.31821797]
[1739307142532,1.029,629.11,628.5,0.31821797]
[1739307143534,1.029,629.11,628.71,1.1796084]
[1739307143731,1.029,629.11,628.72,0.31810662]
[1739307144134,2.382,629.11,628.72,0.31810662]
[1739307146330,2.382,629.11,628.73,1.1796084]
[1739307146635,2.382,629.11,628.74,0.31809651]
[1739307148435,2.382,629.11,628.77,1.1796084]
[1739307149033,2.382,629.11,628.78,0.31807627]
[1739307151536,1.353,629.11,628.78,0.31807627]
[1739307153940,1.353,629.11,629.02,1.1796084]
[1739307154140,1.353,629.11,629.03,0.31794985]
[1739307177059,1.353,629.11,629.08,1.1796084]
[1739307179665,1.353,629.11,629.03,0.31794985]
[1739307185167,1.353,629.11,629.06,1.1796084]
[1739307187766,1.353,629.11,629.03,0.31794985]
[1739307190372,1.353,629.11,629.03,1.49755825]
[1739307190773,1.353,629.11,629.03,1.1796084]
[1739307193776,1.353,629.11,628.87,1.1796084]
[1739307194874,1.353,629.11,628.88,1.65876871]
[1739307196075,1.353,629.11,628.97,1.1796084]
[1739307198377,1.353,629.11,628.88,1.65876871]
[1739307199678,1.353,629.11,628.9,1.1796084]
[1739307202678,1.353,629.11,628.93,1.1796084]
[1739307206078,1.353,629.11,628.88,1.65876871]
[1739307209978,2.702,629.11,628.88,1.65876871]
[1739307210180,2.702,629.11,628.99,1.1796084]
[1739307212686,2.702,629.11,629.01,1.1796084]
[1739307213487,1.349,629.11,629.01,1.1796084]
[1739307214889,1.0,629.17,628.93,1.65839982]
[1739307215188,1.0,629.17,628.94,0.31799535]
[1739307217382,1.0,629.17,628.95,1.1796084]
[1739307217584,1.0,629.17,628.96,0.31798524]
[1739307228300,1.0,629.17,629.06,1.1796084]
[1739307229499,1.0,629.17,629.07,0.31792964]
[1739307231303,1.0,629.17,629.13,1.1796084]
[1739307232801,0.02552481,629.17,629.13,1.1796084]
[1739307233002,0.988,629.41,629.13,1.1796084]
[1739307233800,0.988,629.41,629.07,0.31792964]
[1739307235210,0.988,629.41,629.31,1.17731812]
[1739307235408,1.27,629.51,629.31,1.17731812]
[1739307236512,2.693,629.51,629.31,1.17731812]
[1739307237812,2.693,629.51,629.28,1.17731812]
[1739307239912,2.693,629.51,629.07,0.31792964]
[1739307242522,2.693,629.51,629.09,1.17731812]
[1739307242720,2.693,629.51,629.1,0.31791448]
[1739307244521,1.27,629.51,629.1,0.31791448]
[1739307246115,1.515,629.71,629.1,0.31791448]
[1739307252027,1.27,629.91,629.1,0.31791448]
[1739307252233,1.27,629.91,629.31,1.17731812]
[1739307252729,6.01259335,632.0,629.32,0.31780334]
[1739307252929,6.68897638,631.99,629.32,0.31780334]
[1739307253127,6.68897638,631.98,629.32,0.31780334]
[1739307253427,1.024,630.21,629.32,0.31780334]
[1739307253829,6.01259335,631.95,629.32,0.31780334]
[1739307254127,0.29115255,631.94,629.32,0.31780334]
[1739307254328,0.31655086,631.81,629.32,0.31780334]
[1739307254630,0.29115255,631.8,629.32,0.31780334]
[1739307254928,0.316616,631.68,629.63,1.17731812]
[1739307255132,0.316616,631.68,629.64,0.31764182]
[1739307256133,0.648,631.67,629.64,0.31764182]
[1739307256327,0.31667115,631.57,629.64,0.31764182]
[1739307257230,1.198,630.21,629.64,0.31764182]
[1739307262739,0.31667115,631.57,629.64,0.31764182]
[1739307263738,1.277,630.71,629.64,0.31764182]
[1739307272544,0.649,630.8,629.64,0.31764182]
[1739307273746,1.434,630.71,629.64,0.31764182]
[1739307280864,1.126,630.76,629.64,0.31764182]
[1739307281758,1.126,630.76,629.66,1.17731812]
[1739307281950,1.126,630.76,629.68,0.31762164]
[1739307282153,1.052,630.66,629.68,0.31762164]
[1739307287679,1.052,630.66,629.87,1.16854582]
[1739307287873,1.052,630.66,629.88,0.31752079]
[1739307289273,1.126,630.76,629.88,0.31752079]
[1739307290080,1.126,630.76,630.02,1.16854582]
[1739307290369,1.373,630.61,630.03,0.3174452]
[1739307296861,1.373,630.61,630.26,1.16854582]
[1739307297560,1.373,630.61,630.27,0.31732432]
[1739307298361,1.126,630.76,630.27,0.31732432]
[1739307298865,1.126,630.76,630.27,1.48587014]
[1739307299365,1.886,631.05,630.27,1.48587014]
[1739307299566,0.974,630.81,630.27,1.48587014]
[1739307300667,1.943,630.81,630.27,1.48587014]
[1739307301365,1.943,630.81,630.27,0.31732432]
[1739307305364,3.064,630.81,630.27,0.31732432]
[1739307307170,3.064,630.81,630.67,1.16854582]
[1739307309568,2.09,630.81,630.67,1.16854582]
[1739307310173,2.09,630.81,630.77,1.16854582]
[1739307312675,2.09,630.81,630.74,1.16854582]
[1739307315177,2.09,630.81,630.37,1.16854582]
[1739307315569,2.09,630.81,630.38,0.31726894]
[1739307322679,1.121,630.81,630.38,0.31726894]
[1739307323579,1.121,630.81,630.51,1.16854582]
[1739307323777,1.121,630.81,630.52,0.3171985]
[1739307328887,1.121,630.81,630.79,1.16854582]
[1739307331079,1.121,630.81,630.75,1.16854582]
[1739307333984,1.121,630.81,630.52,0.3171985]
[1739307333985,1.121,630.81,630.74,1.16854582]
[1739307337788,1.121,630.81,630.7,1.16854582]
[1739307340092,1.121,630.81,630.52,0.3171985]
[1739307340093,1.121,630.81,630.73,1.16854582]
[1739307342493,1.121,630.81,630.74,0.31708786]
[1739307343497,2.299,631.01,630.74,0.31708786]
[1739307345397,2.299,631.01,630.97,1.16854582]
[1739307348503,2.299,631.01,630.74,0.31708786]
[1739307348504,2.299,631.01,630.98,1.40225499]
[1739307349098,1.036,631.01,630.98,1.40225499]
[1739307350798,1.367,631.07,630.99,0.31696223]
[1739307355113,1.367,631.07,631.01,1.16743204]
[1739307355307,1.367,631.07,631.02,0.31694716]
[1739307359317,1.367,631.07,631.06,1.16579663]
[1739307363515,1.367,631.07,631.02,0.31694716]
[1739307365618,1.211,631.21,631.02,0.31694716]
[1739307366714,2.352,631.21,631.02,0.31694716]
[1739307375428,2.352,631.21,631.03,1.16579663]
[1739307378129,2.352,631.21,631.05,1.16579663]
[1739307380132,2.352,631.21,630.98,1.16579663]
[1739307380733,1.389,631.01,630.98,1.16579663]
[1739307383030,1.389,631.01,630.9,1.16579663]
[1739307386238,1.389,631.01,630.41,2.38578106]
[1739307386239,1.389,631.01,630.95,1.16579663]
[1739307387838,0.65,631.2,630.95,1.16579663]
[1739307388238,0.65,631.2,630.9,1.16579663]
[1739307388839,1.006,631.06,630.9,1.16579663]
[1739307390744,1.006,631.06,630.89,1.16579663]
[1739307392742,1.006,631.06,631.01,1.16579663]
[1739307395445,1.006,631.06,630.65,2.38578106]
[1739307395446,1.006,631.06,630.99,1.16579663]
[1739307396348,1.267,631.13,630.99,1.16579663]
[1739307397848,1.267,631.13,630.45,2.38578106]
[1739307397849,1.267,631.13,631.0,1.40225499]
[1739307400143,1.267,631.13,631.03,1.17404142]
[1739307402453,1.267,631.13,630.98,1.17404142]
[1739307405553,1.267,631.13,630.72,1.17404142]
[1739307407458,1.267,631.13,630.8,1.17404142]
[1739307408758,1.281,631.06,630.8,1.17404142]
[1739307410356,1.281,631.06,630.78,1.17404142]
[1739307411060,2.71,631.06,630.78,1.17404142]
[1739307413062,2.71,631.06,631.0,1.17404142]
[1739307416164,2.71,631.06,630.93,1.17429464]
[1739307416763,2.696,631.06,630.93,1.17429464]
[1739307418065,1.358,631.01,630.93,1.17429464]
[1739307418565,1.358,631.01,630.92,1.17429464]
[1739307421763,1.358,631.01,630.85,1.17429464]
[1739307423965,1.358,631.01,630.87,1.17429464]
[1739307426670,1.358,631.01,630.65,0.31713311]
[1739307426671,1.358,631.01,630.72,1.17429464]
[1739307428068,2.696,631.06,630.72,1.17429464]
[1739307429171,0.971,630.81,630.65,0.31713311]
[1739307431473,0.971,630.81,630.67,1.17429464]
[1739307434577,0.971,630.81,630.65,0.31713311]
[1739307436177,2.239,630.81,630.65,0.31713311]
[1739307437077,2.239,630.81,630.73,1.17429464]
[1739307438180,3.582,630.81,630.73,1.17429464]
[1739307439583,3.582,630.81,630.76,1.17429464]
[1739307441383,2.611,630.81,630.76,1.17429464]
[1739307442683,3.645,630.81,630.75,1.17429464]
[1739307444481,3.645,630.81,630.65,0.31713311]
[1739307445986,3.645,630.81,630.65,1.49142775]
[1739307449791,2.611,630.81,630.65,1.49142775]
[1739307450990,1.325,630.71,630.65,1.49142775]
[1739307451789,1.325,630.71,630.69,1.17404142]
[1739307452490,1.343,630.81,630.69,1.17404142]
[1739307452991,1.343,630.81,630.7,0.31710797]
[1739307458998,1.343,630.81,630.77,1.17108065]
[1739307461399,1.343,630.81,630.72,1.40225499]
[1739307462402,1.343,630.81,630.73,0.31709289]
[1739307463402,0.51046303,630.81,630.73,0.31709289]
[1739307463700,1.267,631.01,630.73,0.31709289]
[1739307467402,1.267,631.01,630.94,1.16721103]
[1739307469002,0.979,631.21,630.94,1.16721103]
[1739307470205,2.246,631.21,630.73,0.31709289]
[1739307475003,1.267,631.21,630.73,0.31709289]
[1739307476308,1.466,630.96,630.73,0.31709289]
[1739307480909,1.466,630.96,630.78,1.16488612]
[1739307484316,1.267,631.21,630.78,1.16488612]
[1739307484517,1.267,631.21,630.73,0.31709289]
[1739307485409,1.138,630.81,630.73,0.31709289]
[1739307486216,1.138,630.81,630.69,1.16488612]
[1739307486517,1.138,630.81,630.62,1.16488612]
[1739307488519,2.406,630.81,630.62,1.16488612]
[1739307492315,2.406,630.81,630.57,1.65433312]
[1739307494442,1.268,630.81,630.57,1.65433312]
[1739307495648,2.255,630.81,630.57,1.65433312]
[1739307498531,2.255,630.81,630.58,0.31716832]
[1739307500723,2.255,630.81,630.6,1.16488612]
[1739307503423,2.255,630.81,630.69,1.16488612]
[1739307504728,1.268,630.81,630.69,1.16488612]
[1739307505425,1.268,630.81,630.59,1.16488612]
[1739307507328,1.268,630.81,630.58,3.13628926]
[1739307509731,1.268,630.81,630.59,1.16488612]
[1739307510132,2.544,630.81,630.59,1.16488612]
[1739307512033,2.544,630.81,630.72,1.16488612]
[1739307513833,2.544,630.81,630.78,1.16721103]
[1739307515137,3.799,630.81,630.78,1.16721103]
[1739307515438,2.531,630.81,630.78,1.16721103]
[1739307516041,2.531,630.81,630.58,1.97140314]
[1739307516042,2.531,630.81,630.62,1.17290012]
[1739307516643,3.799,630.81,630.62,1.17290012]
[1739307519647,3.799,630.81,630.58,1.97140314]
[1739307521950,3.799,630.81,630.64,1.17290012]
[1739307525144,2.544,630.81,630.64,1.17290012]
[1739307525550,2.544,630.81,630.72,1.17290012]
[1739307527448,2.544,630.81,630.7,1.16721103]
[1739307528047,2.544,630.81,630.7,1.484319]
[1739307529348,2.544,630.81,630.71,0.31710294]
[1739307530449,2.544,630.81,630.77,2.38578106]
[1739307530753,0.955,630.91,630.78,0.31706775]
[1739307530951,1.118,631.35,630.78,0.31706775]
[1739307530952,6.09606083,632.88,630.78,0.31706775]
[1739307531145,0.31615055,632.61,630.78,0.31706775]
[1739307531952,1.34415055,632.61,630.78,0.31706775]
[1739307532152,1.432,631.31,630.78,0.31706775]
[1739307533449,1.432,631.31,631.29,1.16965421]
[1739307536455,1.432,631.31,631.02,1.16965421]
[1739307538856,1.432,631.31,630.91,1.16965421]
[1739307539061,1.432,631.31,630.92,0.3169974]
[1739307540455,0.65,632.6,630.92,0.3169974]
[1739307541060,0.31616554,632.58,630.92,0.3169974]
[1739307541652,1.276,631.31,630.92,0.3169974]
[1739307551668,0.651,631.45,630.92,0.3169974]
[1739307552970,0.976,631.11,630.92,0.3169974]
[1739307554872,0.976,631.11,630.76,1.16965421]
[1739307558271,0.976,631.11,630.59,1.16965421]
[1739307561476,0.976,631.11,630.06,2.38578106]
[1739307561477,0.976,631.11,630.47,1.16965421]
[1739307562178,2.065,631.11,630.48,1.65424792]
[1739307562971,1.089,631.11,630.48,1.65424792]
[1739307564174,1.417,630.76,630.48,1.65424792]
[1739307566671,1.417,630.76,630.49,0.31721359]
[1739307569380,1.089,631.11,630.49,0.31721359]
[1739307570281,1.148,631.11,630.49,0.31721359]
[1739307570483,1.41,631.01,630.49,0.31721359]
[1739307571881,1.41,631.01,630.56,1.16965421]
[1739307572077,1.41,631.01,630.57,0.31717335]
[1739307574382,1.41,631.01,630.57,1.48682756]
[1739307577685,1.41,631.01,630.93,1.16965421]
[1739307578485,0.059,631.11,630.93,1.16965421]
[1739307579681,0.059,631.11,630.94,0.31698735]
[1739307580185,0.059,631.11,631.05,1.16965421]
[1739307582890,0.059,631.11,631.08,1.16417116]
[1739307585691,0.059,631.11,630.94,0.31698735]
[1739307604209,0.059,631.11,630.85,1.16417116]
[1739307605004,0.059,631.11,630.88,1.16417116]
[1739307607510,0.059,631.11,630.88,0.16817116]
[1739307608208,1.326,631.11,630.88,0.16817116]
[1739307608412,1.326,631.11,630.65,0.16817116]
[1739307608813,1.326,631.11,630.66,1.65361907]
[1739307609014,1.326,631.11,630.67,0.31712305]
[1739307610309,1.326,631.11,630.85,1.16965421]
[1739307610505,1.326,631.11,630.85,1.48668678]
[1739307611509,1.326,631.11,630.86,0.31702754]
[1739307613114,1.267,631.11,630.86,0.31702754]
[1739307616010,1.267,631.11,631.1,1.16965421]
[1739307617419,0.064,631.17,631.1,1.16965421]
[1739307617614,0.064,631.17,631.11,0.31690196]
[1739307623923,1.266,631.56,631.11,0.31690196]
[1739307627819,0.066,631.62,631.11,0.31690196]
[1739307629028,0.066,631.62,631.15,1.16965421]
[1739307629226,0.066,631.62,631.16,0.31687686]
[1739307646637,0.066,631.62,631.16,1.48653107]
[1739307648543,0.066,631.62,631.22,1.16965421]